[Event "35th European Club Cup 2019"]
[Site "Ulcinj"]
[Date "2019.11.15"]
[Round "6.5"]
[White "Van Wissen, Michiel"]
[Black "Kisic, Jovan"]
[Result "1-0"]
[ECO "B52"]
[WhiteElo "2289"]
[BlackElo "1780"]
[Annotator "NA"]
[PlyCount "67"]
[EventDate "2019.11.10"]
[EventType "team-tourn"]
[EventCountry "MNE"]
[SourceTitle "playchess.com"]
[Source "ChessBase"]
[SourceQuality "1"]
[WhiteTeam "LSG IntelliMagic"]
[BlackTeam "Itaka"]
[TimeControl "40/5400+30:1800+30"]

1. e4 {[%emt 0:00:00]} c5 {[%emt 0:00:17]} 2. Nf3 {[%emt 0:00:00]} d6 {[%emt 0:00:37]} 3. Bb5+ {[%emt 0:04:05]} Bd7 {[%emt 0:03:42]} 4. Bxd7+ {[%emt 0:00:45]} Qxd7 {[%emt 0:01:26]} 5. O-O {[%emt 0:00:54]} Nc6 {[%emt 0:04:13]} 6. c3 {[%emt 0:04:18]} Nf6 {[%emt 0:03:36]} 7. Re1 {[%emt 0:01:32]} e6 {[%emt 0:04:37]} 8. d4 {[%emt 0:00:30]} cxd4 {[%emt 0:01:22]} 9. cxd4 {[%emt 0:02:17]} d5 {[%emt 0:00:34]} 10. e5 {[%emt 0:00:34]} Ne4 {[%emt 0:02:28]} 11. Nc3 {[%emt 0:07:50]} Nxc3 {[%emt 0:06:30]} 12. bxc3 {[%emt 0:01:10]} h6 {[%emt 0:02:23]} 13. Qd3 {[%emt 0:05:28]} Be7 {[%emt 0:04:28]} 14. h4 {[%emt 0:16:40]} O-O-O {[%emt 0:04:42]} 15. Be3 {[%emt 0:00:30]} Na5 {[%emt 0:06:10]} 16. a4 {[%emt 0:02:40]} Kb8 {[%emt 0:02:41]} 17. Reb1 {[%emt 0:06:02]} Nc4 {[%emt 0:03:49]} 18. a5 {[%emt 0:02:38]} Rc8 {[%emt 0:05:12]} 19. a6 {[%emt 0:05:10]} b6 {[%emt 0:00:26]} 20. Bc1 {[%emt 0:11:33]} Rc7 {[%emt 0:01:59]} 21. h5 {[%emt 0:04:00]} Ka8 {[%emt 0:03:47]} 22. g3 {[%emt 0:06:16]} Kb8 {[%emt 0:05:18]} 23. Kg2 {[%emt 0:00:38]} f5 {[%emt 0:04:12]} 24. exf6 {[%emt 0:02:39]} gxf6 {[%emt 0:02:21]} 25. Qg6 {[%emt 0:01:55]} Nd6 {[%emt 0:03:23]} 26. Bxh6 {[%emt 0:01:16]} Nf5 {[%emt 0:03:29]} 27. Bf4 {[%emt 0:01:43]} Bd6 {[%emt 0:01:04]} 28. Bxd6 {[%emt 0:03:10]} Qxd6 {[%emt 0:01:11]} 29. Qxf6 {[%emt 0:00:58]} Rxh5 {[%emt 0:00:46]} 30. Rh1 {[%emt 0:02:21]} Rhh7 {[%emt 0:09:21]} 31. Rxh7 {[%emt 0:01:21]} Rxh7 {[%emt 0:00:08]} 32. Re1 {[%emt 0:01:11]} Re7 {[%emt 0:02:51]} 33. Qf8+ {[%emt 0:01:45]} Kc7 {[%emt 0:00:29]} 34. Qa8 {[%emt 0:00:27]} 1-0

[Event "35th European Club Cup 2019"]
[Site "Ulcinj"]
[Date "2019.11.15"]
[Round "6.6"]
[White "Damjanovic, Vladimir"]
[Black "Van Ketel, Raoul"]
[Result "1-0"]
[ECO "D30"]
[WhiteElo "2398"]
[BlackElo "2212"]
[Annotator "NA"]
[PlyCount "104"]
[EventDate "2019.11.10"]
[EventType "team-tourn"]
[EventCountry "MNE"]
[SourceTitle "playchess.com"]
[Source "ChessBase"]
[SourceQuality "1"]
[WhiteTeam "Itaka"]
[BlackTeam "LSG IntelliMagic"]
[TimeControl "40/5400+30:1800+30"]

1. Nf3 {[%emt 0:00:00]} Nf6 {[%emt 0:00:08]} 2. g3 {[%emt 0:00:07]} d5 {[%emt 0:00:27]} 3. Bg2 {[%emt 0:00:10]} e6 {[%emt 0:00:19]} 4. O-O {[%emt 0:00:48]} Be7 {[%emt 0:00:21]} 5. c4 {[%emt 0:00:38]} O-O {[%emt 0:00:50]} 6. b3 {[%emt 0:00:43]} c5 {[%emt 0:00:59]} 7. Bb2 {[%emt 0:01:37]} Nc6 {[%emt 0:01:33]} 8. cxd5 {[%emt 0:02:07]} exd5 {[%emt 0:07:41]} 9. d4 {[%emt 0:00:39]} Bg4 {[%emt 0:03:42]} 10. Ne5 {[%emt 0:08:11]} Be6 {[%emt 0:18:19]} 11. Nxc6 {[%emt 0:02:21]} bxc6 {[%emt 0:00:10]} 12. dxc5 {[%emt 0:01:19]} Bxc5 {[%emt 0:08:22]} 13. Nc3 {[%emt 0:01:05]} Re8 {[%emt 0:02:07]} 14. Rc1 {[%emt 0:00:53]} Rc8 {[%emt 0:00:30]} 15. Na4 {[%emt 0:00:30]} Bf8 {[%emt 0:00:30]} 16. Qd4 {[%emt 0:00:30]} Qa5 {[%emt 0:00:30]} 17. Nc5 {[%emt 0:00:30]} Bf5 {[%emt 0:00:30]} 18. b4 {[%emt 0:00:30]} Qb6 {[%emt 0:00:30]} 19. Qf4 {[%emt 0:00:30]} Be6 {[%emt 0:00:30]} 20. Bxf6 {[%emt 0:00:30]} gxf6 {[%emt 0:00:30]} 21. a3 {[%emt 0:00:30]} Bg7 {[%emt 0:00:30]} 22. e4 {[%emt 0:00:30]} Rcd8 {[%emt 0:00:30]} 23. Rfd1 {[%emt 0:00:30]} Re7 {[%emt 0:00:30]} 24. exd5 {[%emt 0:00:30]} cxd5 {[%emt 0:48:15]} 25. Rc2 {[%emt 0:45:08]} f5 {[%emt 0:00:30]} 26. Bh3 {[%emt 0:00:30]} Qd6 {[%emt 0:00:30]} 27. Qh4 {[%emt 0:00:30]} h6 {[%emt 0:00:30]} 28. Nd3 {[%emt 0:00:30]} d4 {[%emt 0:01:17]} 29. Rc5 {[%emt 0:10:10]} Rde8 {[%emt 0:00:30]} 30. Bxf5 {[%emt 0:03:29]} Bxf5 {[%emt 0:00:46]} 31. Rxf5 {[%emt 0:00:09]} Qe6 {[%emt 0:00:30]} 32. Qg4 {[%emt 0:00:30]} Qb3 {[%emt 0:00:30]} 33. Nf4 {[%emt 0:00:30]} Re1+ {[%emt 0:00:30]} 34. Rxe1 {[%emt 0:00:30]} Rxe1+ {[%emt 0:00:30]} 35. Kg2 {[%emt 0:00:30]} Qc4 {[%emt 0:00:30]} 36. Kh3 {[%emt 0:00:30]} Qf1+ {[%emt 0:00:30]} 37. Kh4 {[%emt 0:00:30]} Qh1 {[%emt 0:00:30]} 38. h3 {[%emt 0:00:30]} Qe4 {[%emt 0:00:30]} 39. Nh5 {[%emt 0:00:30]} Qxg4+ {[%emt 0:00:30]} 40. Kxg4 {[%emt 0:00:30]} Ra1 {[%emt 0:00:30]} 41. Nxg7 {[%emt 0:30:30]} Kxg7 {[%emt 0:04:41]} 42. Rf3 {[%emt 0:00:00]} Ra2 {[%emt 0:00:30]} 43. Kf5 {[%emt 0:00:00]} Re2 {[%emt 0:03:03]} 44. g4 {[%emt 0:00:00]} f6 {[%emt 0:02:57]} 45. Rd3 {[%emt 0:00:00]} Rxf2+ {[%emt 0:00:30]} 46. Ke4 {[%emt 0:00:00]} Rc2 {[%emt 0:00:30]} 47. Kxd4 {[%emt 0:00:00]} Rc7 {[%emt 0:00:30]} 48. b5 {[%emt 0:00:00]} Kg6 {[%emt 0:00:30]} 49. a4 {[%emt 0:00:00]} Rc1 {[%emt 0:11:51]} 50. Ra3 {[%emt 0:03:21]} f5 {[%emt 0:00:30]} 51. gxf5+ {[%emt 0:00:30]} Kxf5 {[%emt 0:00:30]} 52. a5 {[%emt 0:00:30]} Ke6 {[%emt 0:00:30]} 1-0

[Event "35th European Club Cup 2019"]
[Site "Ulcinj"]
[Date "2019.11.15"]
[Round "6.6"]
[White "Pacher, Simon"]
[Black "Piceu, Tom"]
[Result "1/2-1/2"]
[ECO "B98"]
[WhiteElo "2072"]
[BlackElo "2354"]
[Annotator "NA"]
[PlyCount "130"]
[EventDate "2019.11.10"]
[EventType "team-tourn"]
[EventCountry "MNE"]
[SourceTitle "playchess.com"]
[Source "ChessBase"]
[SourceQuality "1"]
[WhiteTeam "Feffernitz"]
[BlackTeam "HWP Sas van Gent"]
[TimeControl "40/5400+30:1800+30"]

1. e4 c5 2. Nf3 d6 3. d4 cxd4 4. Nxd4 Nf6 5. Nc3 a6 6. Bg5 e6 7. f4 Be7 8. Qe2 O-O 9. O-O-O Nbd7 10. g4 Qc7 11. h4 b5 12. a3 Bb7 13. Rh3 Rac8 14. Kb1 Rfe8 15. Re3 Bf8 16. Bxf6 Nxf6 17. g5 Nd7 18. h5 e5 19. fxe5 Nxe5 20. Bh3 Rcd8 21. g6 hxg6 22. hxg6 Nxg6 23. Bf5 Ne5 24. Bh7+ Kxh7 25. Qh5+ Kg8 26. Rh3 f6 27. Nf5 Qc5 28. Rg3 Nf7 29. Nd5 Bxd5 30. Rxg7+ Bxg7 31. Qg6 Ba2+ 32. Kxa2 Qxf5 33. exf5 Ne5 34. Qh5 Re7 35. Rg1 Rc8 36. Qd1 Nf7 37. Qg4 Ng5 38. Qd1 Nf7 39. Qg4 Ne5 40. Qd1 Nc4 41. b3 Ne3 42. Qxd6 Rxc2+ 43. Kb1 Rcc7 44. Qxa6 Nxf5 45. Qxb5 Nd6 46. Qd5+ Nf7 47. b4 Re2 48. Qa8+ Kh7 49. Qf3 Rce7 50. Qf5+ Kh8 51. Qc8+ Re8 52. Qg4 Ng5 53. Qc4 Rh2 54. Qc6 Ree2 55. Rh1 Rb2+ 56. Kc1 Rbc2+ 57. Qxc2 Rxh1+ 58. Kb2 Rh3 59. Ka2 Bf8 60. Qg6 Rf3 61. Kb2 Bg7 62. Qe8+ Kh7 63. Qh5+ Kg8 64. Qe8+ Kh7 65. Qh5+ Kg8 1/2-1/2

[Event "35th European Club Cup 2019"]
[Site "Ulcinj"]
[Date "2019.11.15"]
[Round "6.6"]
[White "Wambach, Patrick"]
[Black "Greenfeld, Alon"]
[Result "0-1"]
[ECO "A09"]
[WhiteElo "1988"]
[BlackElo "2513"]
[Annotator "ChessBase"]
[PlyCount "88"]
[EventDate "2019.11.10"]
[EventType "team-tourn"]
[EventCountry "MNE"]
[SourceTitle "playchess.com"]
[Source "ChessBase"]
[SourceQuality "1"]
[WhiteTeam "De Sprenger Echternach"]
[BlackTeam "Beer Sheva"]
[TimeControl "40/5400+30:1800+30"]

1. Nf3 {[%emt 0:00:00]} d5 {[%emt 0:01:05]} 2. c4 {[%emt 0:00:38]} d4 {[%emt 0:00:51]} 3. d3 {[%emt 0:02:15]} Nc6 {[%emt 0:01:22]} 4. g3 {[%emt 0:00:32]} e5 {[%emt 0:00:42]} 5. Bg2 {[%emt 0:00:52]} Bb4+ {[%emt 0:01:51]} 6. Bd2 {[%emt 0:01:25]} a5 {[%emt 0:00:08]} 7. O-O {[%emt 0:04:50]} Nf6 {[%emt 0:01:37]} 8. a3 {[%emt 0:02:11]} Be7 {[%emt 0:02:04]} 9. Bg5 {[%emt 0:02:25]} O-O {[%emt 0:02:56]} 10. Nbd2 {[%emt 0:01:49]} a4 {[%emt 0:01:42]} 11. b4 {[%emt 0:08:42]} axb3 {[%emt 0:00:13]} 12. Qxb3 {[%emt 0:00:06]} Nd7 {[%emt 0:05:38]} 13. Bxe7 {[%emt 0:11:03]} Qxe7 {[%emt 0:00:37]} 14. Rfb1 {[%emt 0:01:55]} Nc5 {[%emt 0:00:26]} 15. Qc2 {[%emt 0:00:18]} Ra7 {[%emt 0:03:14]} 16. a4 {[%emt 0:12:41]} Bd7 {[%emt 0:03:55]} 17. Rb5 {[%emt 0:07:55]} Rfa8 {[%emt 0:04:16]} 18. Ne4 {[%emt 0:10:19]} Nxe4 {[%emt 0:05:12]} 19. dxe4 {[%emt 0:00:02]} Nb4 {[%emt 0:00:38]} 20. Rxb4 {[%emt 0:02:27]} Qxb4 {[%emt 0:00:08]} 21. Nxe5 {[%emt 0:01:41]} Rxa4 {[%emt 0:05:26]} 22. Rxa4 {[%emt 0:05:33]} Bxa4 {[%emt 0:06:47]} 23. Qc1 {[%emt 0:00:23]} Be8 {[%emt 0:04:25]} 24. Bh3 {[%emt 0:02:32]} Qc3 {[%emt 0:06:06]} 25. Qf4 {[%emt 0:00:21]} Qe1+ {[%emt 0:05:47]} 26. Kg2 {[%emt 0:00:13]} Qxe2 {[%emt 0:00:37]} 27. Bg4 {[%emt 0:06:24]} Qc2 {[%emt 0:02:11]} 28. Bh5 {[%emt 0:02:59]} f6 {[%emt 0:02:54]} 29. Bxe8 {[%emt 0:00:52]} Rxe8 {[%emt 0:00:17]} 30. Nf3 {[%emt 0:00:24]} Qxc4 {[%emt 0:02:20]} 31. Qf5 {[%emt 0:01:24]} Qe6 {[%emt 0:00:50]} 32. Qc5 {[%emt 0:00:39]} Qxe4 {[%emt 0:01:52]} 33. Qxc7 {[%emt 0:00:18]} g5 {[%emt 0:02:03]} 34. h3 {[%emt 0:01:08]} h5 {[%emt 0:00:31]} 35. Qc4+ {[%emt 0:00:31]} Kg7 {[%emt 0:00:29]} 36. Qxd4 {[%emt 0:00:48]} g4 {[%emt 0:01:21]} 37. hxg4 {[%emt 0:00:43]} hxg4 {[%emt 0:00:07]} 38. Qxe4 {[%emt 0:00:34]} Rxe4 {[%emt 0:00:06]} 39. Nd2 {[%emt 0:00:27]} Re1 {[%emt 0:02:21]} 40. Nb3 {[%emt 0:00:00]} b5 {[%emt 0:00:00]} 41. Nd4 {[%emt 0:00:51]} b4 {[%emt 0:01:15]} 42. f3 {[%emt 0:00:29]} Rd1 {[%emt 0:00:41]} 43. Nf5+ {[%emt 0:00:18]} Kf8 {[%emt 0:00:28]} 44. fxg4 {[%emt 0:00:15]} b3 {[%emt 0:00:27]} 0-1

[Event "35th European Club Cup 2019"]
[Site "Ulcinj"]
[Date "2019.11.15"]
[Round "6.7"]
[White "Ivanisevic, Ivan"]
[Black "Kjartansson, Gudmundur"]
[Result "1-0"]
[ECO "D43"]
[WhiteElo "2598"]
[BlackElo "2454"]
[Annotator "ChessBase"]
[PlyCount "51"]
[EventDate "2019.11.10"]
[EventType "team-tourn"]
[EventCountry "MNE"]
[SourceTitle "playchess.com"]
[Source "ChessBase"]
[SourceQuality "1"]
[WhiteTeam "Sloven Ruma"]
[BlackTeam "Reykjavik CC"]
[TimeControl "40/5400+30:1800+30"]

1. d4 {[%emt 0:00:00]} d5 {[%emt 0:00:00]} 2. c4 {[%emt 0:00:00]} e6 {[%emt 0:00:00]} 3. Nc3 {[%emt 0:00:00]} c6 {[%emt 0:00:00]} 4. Nf3 {[%emt 0:00:00]} Nf6 {[%emt 0:00:24]} 5. g3 {[%emt 0:00:00]} dxc4 {[%emt 0:00:54]} 6. Ne5 {[%emt 0:00:03]} Nbd7 {[%emt 0:00:16]} 7. Nxc4 {[%emt 0:00:23]} b5 {[%emt 0:00:09]} 8. Ne3 {[%emt 0:00:45]} Bb7 {[%emt 0:00:52]} 9. Bg2 {[%emt 0:00:06]} b4 {[%emt 0:15:12]} 10. Na4 {[%emt 0:01:57]} Rb8 {[%emt 0:07:53]} 11. O-O {[%emt 0:03:22]} c5 {[%emt 0:03:44]} 12. d5 {[%emt 0:01:02]} Nb6 {[%emt 0:02:49]} 13. Nxb6 {[%emt 0:01:10]} axb6 {[%emt 0:00:08]} 14. dxe6 fxe6 {[%emt 0:00:15]} 15. Qb3 {[%emt 0:10:30]} Qc8 {[%emt 0:19:59]} 16. Bh3 {[%emt 0:09:09]} Kf7 {[%emt 0:01:05]} 17. Nc4 {[%emt 0:02:18]} Bd5 {[%emt 0:00:51]} 18. Rd1 {[%emt 0:09:13]} b5 {[%emt 0:02:21]} 19. Ne5+ {[%emt 0:00:45]} Kg8 {[%emt 0:00:17]} 20. Rxd5 {[%emt 0:12:22]} Nxd5 {[%emt 0:01:10]} 21. e4 {[%emt 0:02:14]} c4 {[%emt 0:04:23]} 22. Qf3 {[%emt 0:02:04]} Nf6 {[%emt 0:00:18]} 23. Bg5 {[%emt 0:02:52]} Be7 {[%emt 0:01:28]} 24. Rd1 {[%emt 0:00:38]} Rb6 {[%emt 0:09:19]} 25. Bxf6 {[%emt 0:01:51]} gxf6 {[%emt 0:12:12]} 26. Qg4+ {[%emt 0:01:16]} 1-0

[Event "35th European Club Cup 2019"]
[Site "Ulcinj"]
[Date "2019.11.15"]
[Round "6.7"]
[White "Draskovic, Luka"]
[Black "Heimann, Andreas"]
[Result "1/2-1/2"]
[ECO "C44"]
[WhiteElo "2460"]
[BlackElo "2617"]
[Annotator "ChessBase"]
[PlyCount "51"]
[EventDate "2019.11.10"]
[EventType "team-tourn"]
[EventCountry "MNE"]
[SourceTitle "playchess.com"]
[Source "ChessBase"]
[SourceQuality "1"]
[WhiteTeam "Crnogorac"]
[BlackTeam "Riehen SG"]
[TimeControl "40/5400+30:1800+30"]

1. e4 {[%emt 0:00:00]} e5 {[%emt 0:00:00]} 2. Nf3 {[%emt 0:00:00]} Nc6 {[%emt 0:00:00]} 3. d4 {[%emt 0:00:00]} exd4 {[%emt 0:00:00]} 4. Nxd4 {[%emt 0:00:00]} Nf6 {[%emt 0:00:00]} 5. Nc3 {[%emt 0:00:00]} Bb4 {[%emt 0:00:00]} 6. Nxc6 {[%emt 0:00:00]} bxc6 {[%emt 0:00:00]} 7. Bd3 {[%emt 0:00:03]} d5 {[%emt 0:00:16]} 8. exd5 {[%emt 0:00:06]} O-O {[%emt 0:00:04]} 9. O-O {[%emt 0:00:13]} cxd5 {[%emt 0:00:03]} 10. Bg5 {[%emt 0:00:27]} c6 {[%emt 0:00:11]} 11. Qf3 {[%emt 0:00:54]} Rb8 {[%emt 0:02:10]} 12. h3 {[%emt 0:00:14]} Bd6 {[%emt 0:00:35]} 13. b3 {[%emt 0:00:33]} h6 {[%emt 0:19:03]} 14. Bxf6 {[%emt 0:07:06]} Qxf6 {[%emt 0:00:11]} 15. Qxf6 {[%emt 0:00:02]} gxf6 {[%emt 0:00:05]} 16. Ne2 {[%emt 0:00:04]} Be6 {[%emt 0:03:57]} 17. Ng3 {[%emt 0:04:39]} c5 {[%emt 0:01:45]} 18. Rad1 {[%emt 0:09:23]} c4 {[%emt 0:03:47]} 19. Bf5 {[%emt 0:02:06]} Rfc8 {[%emt 0:17:28]} 20. Rfe1 {[%emt 0:15:34]} Be5 {[%emt 0:00:30]} 21. f4 {[%emt 0:00:30]} Bxf4 {[%emt 0:00:30]} 22. Rxe6 {[%emt 0:00:30]} fxe6 {[%emt 0:00:30]} 23. Bxe6+ {[%emt 0:00:30]} Kf8 {[%emt 0:00:30]} 24. Bxc8 {[%emt 0:00:30]} cxb3 {[%emt 0:00:30]} 25. cxb3 {[%emt 0:00:30]} Bxg3 {[%emt 0:00:30]} 26. Be6 {[%emt 0:00:30]} 1/2-1/2

[Event "35th European Club Cup 2019"]
[Site "Ulcinj"]
[Date "2019.11.15"]
[Round "6.7"]
[White "Subelj, Jan"]
[Black "Hammer, Jon Ludvig"]
[Result "0-1"]
[ECO "C42"]
[WhiteElo "2398"]
[BlackElo "2625"]
[Annotator "ChessBase"]
[PlyCount "96"]
[EventDate "2019.11.10"]
[EventType "team-tourn"]
[EventCountry "MNE"]
[SourceTitle "playchess.com"]
[Source "ChessBase"]
[SourceQuality "1"]
[WhiteTeam "Maribor"]
[BlackTeam "Koge SK"]
[TimeControl "40/5400+30:1800+30"]

1. e4 {[%emt 0:00:00]} e5 {[%emt 0:00:00]} 2. Nf3 {[%emt 0:00:08]} Nf6 {[%emt 0:00:00]} 3. Nxe5 {[%emt 0:01:44]} d6 {[%emt 0:00:00]} 4. Nf3 {[%emt 0:00:07]} Nxe4 {[%emt 0:00:00]} 5. c4 {[%emt 0:01:58]} Be7 {[%emt 0:00:00]} 6. Nc3 {[%emt 0:07:57]} Bf5 {[%emt 0:00:00]} 7. Be2 {[%emt 0:06:03]} O-O {[%emt 0:02:48]} 8. O-O {[%emt 0:00:43]} Re8 {[%emt 0:15:23]} 9. d4 {[%emt 0:10:12]} Nxc3 {[%emt 0:01:22]} 10. bxc3 {[%emt 0:00:04]} c5 {[%emt 0:13:01]} 11. d5 {[%emt 0:11:48]} Qa5 {[%emt 0:05:13]} 12. Bd3 {[%emt 0:03:12]} Bg4 {[%emt 0:10:41]} 13. Qc2 {[%emt 0:18:45]} Bxf3 {[%emt 0:01:17]} 14. gxf3 g6 {[%emt 0:00:00]} 15. Bf4 {[%emt 0:06:02]} Nd7 {[%emt 0:01:17]} 16. Rae1 {[%emt 0:00:17]} Ne5 {[%emt 0:01:27]} 17. Bxe5 {[%emt 0:03:56]} dxe5 {[%emt 0:00:07]} 18. Rxe5 {[%emt 0:00:36]} Bd6 {[%emt 0:00:06]} 19. Re4 {[%emt 0:00:11]} Qd8 {[%emt 0:06:50]} 20. Qd2 {[%emt 0:05:41]} Qf6 {[%emt 0:00:05]} 21. Rfe1 {[%emt 0:02:22]} Re5 {[%emt 0:12:33]} 22. Rxe5 {[%emt 0:06:03]} Bxe5 {[%emt 0:00:30]} 23. Re4 {[%emt 0:00:09]} Bd6 24. f4 {[%emt 0:05:17]} Kg7 {[%emt 0:03:34]} 25. Bf1 {[%emt 0:00:15]} a5 {[%emt 0:00:12]} 26. Bh3 {[%emt 0:02:18]} a4 {[%emt 0:01:32]} 27. Kg2 {[%emt 0:01:14]} a3 {[%emt 0:01:51]} 28. Qe3 {[%emt 0:02:41]} Ra6 {[%emt 0:01:19]} 29. Bd7 {[%emt 0:00:56]} Rb6 {[%emt 0:01:11]} 30. Bb5 {[%emt 0:00:02]} Qf5 {[%emt 0:00:31]} 31. f3 {[%emt 0:02:01]} Bf8 {[%emt 0:00:13]} 32. Re8 {[%emt 0:01:56]} Rf6 {[%emt 0:07:30]} 33. Qe4 {[%emt 0:00:08]} Bd6 {[%emt 0:04:07]} 34. Qxf5 {[%emt 0:00:04]} gxf5 {[%emt 0:00:06]} 35. Ra8 {[%emt 0:01:56]} Rg6+ {[%emt 0:00:06]} 36. Kf1 {[%emt 0:00:20]} Bxf4 {[%emt 0:03:57]} 37. Rxa3 {[%emt 0:00:02]} Bxh2 {[%emt 0:00:50]} 38. Ra7 {[%emt 0:00:04]} b6 {[%emt 0:00:46]} 39. Bd7 {[%emt 0:01:06]} Kf6 {[%emt 0:02:29]} 40. Be8 {[%emt 0:00:00]} Rg7 {[%emt 0:00:00]} 41. Rb7 {[%emt 0:01:14]} h5 {[%emt 0:04:03]} 42. Rxb6+ {[%emt 0:02:04]} Ke7 {[%emt 0:00:30]} 43. Ba4 {[%emt 0:00:44]} Rg1+ {[%emt 0:04:52]} 44. Kf2 {[%emt 0:00:47]} Ra1 {[%emt 0:00:30]} 45. Bb3 {[%emt 0:03:56]} Bf4 {[%emt 0:00:30]} 46. Rb7+ {[%emt 0:03:07]} Kf8 {[%emt 0:00:30]} 47. Rb6 {[%emt 0:01:35]} h4 {[%emt 0:06:59]} 48. Kg2 {[%emt 0:05:31]} Rb1 {[%emt 0:02:32]} 0-1

[Event "35th European Club Cup 2019"]
[Site "Ulcinj"]
[Date "2019.11.15"]
[Round "6.8"]
[White "Banusz, Tamas"]
[Black "Bratkovic, Jakob"]
[Result "1-0"]
[ECO "A14"]
[WhiteElo "2620"]
[BlackElo "2308"]
[Annotator "ChessBase"]
[PlyCount "105"]
[EventDate "2019.11.10"]
[EventType "team-tourn"]
[EventCountry "MNE"]
[SourceTitle "playchess.com"]
[Source "ChessBase"]
[SourceQuality "1"]
[WhiteTeam "Koge SK"]
[BlackTeam "Maribor"]
[TimeControl "40/5400+30:1800+30"]

1. Nf3 {[%emt 0:00:00]} d5 {[%emt 0:01:00]} 2. g3 {[%emt 0:00:00]} Nf6 {[%emt 0:00:14]} 3. Bg2 {[%emt 0:00:00]} e6 {[%emt 0:00:31]} 4. c4 {[%emt 0:00:00]} Be7 {[%emt 0:00:20]} 5. O-O {[%emt 0:00:51]} O-O {[%emt 0:00:32]} 6. b3 {[%emt 0:00:11]} c5 {[%emt 0:09:05]} 7. cxd5 {[%emt 0:00:42]} Nxd5 {[%emt 0:01:54]} 8. Bb2 {[%emt 0:00:15]} Nc6 {[%emt 0:01:48]} 9. d4 {[%emt 0:00:41]} Nxd4 {[%emt 0:09:14]} 10. Nxd4 {[%emt 0:00:32]} Bf6 {[%emt 0:05:39]} 11. Na3 {[%emt 0:12:28]} cxd4 {[%emt 0:12:06]} 12. Bxd4 {[%emt 0:00:46]} Qe7 {[%emt 0:00:45]} 13. Bxf6 {[%emt 0:03:42]} Nxf6 {[%emt 0:01:11]} 14. Nc4 {[%emt 0:00:39]} Rd8 {[%emt 0:01:00]} 15. Qc1 {[%emt 0:03:24]} Qc7 {[%emt 0:04:49]} 16. Qf4 {[%emt 0:06:45]} Qxf4 {[%emt 0:12:11]} 17. gxf4 {[%emt 0:00:38]} Rb8 {[%emt 0:00:01]} 18. Na5 {[%emt 0:07:44]} Kf8 {[%emt 0:03:36]} 19. Rfd1 {[%emt 0:02:35]} Rxd1+ {[%emt 0:00:51]} 20. Rxd1 {[%emt 0:00:02]} Ke7 {[%emt 0:00:08]} 21. Rd4 {[%emt 0:01:32]} Nd7 {[%emt 0:02:03]} 22. Rb4 {[%emt 0:05:11]} Nb6 {[%emt 0:00:13]} 23. Rd4 {[%emt 0:01:52]} Nd7 {[%emt 0:00:02]} 24. Kf1 {[%emt 0:01:06]} Nc5 {[%emt 0:09:28]} 25. b4 {[%emt 0:02:32]} Na6 {[%emt 0:00:24]} 26. a4 {[%emt 0:03:58]} Nc7 {[%emt 0:01:31]} 27. b5 {[%emt 0:00:52]} Ne8 {[%emt 0:01:18]} 28. e4 {[%emt 0:04:24]} Bd7 {[%emt 0:00:27]} 29. e5 {[%emt 0:00:10]} b6 {[%emt 0:00:28]} 30. Bc6 {[%emt 0:00:56]} Bc8 {[%emt 0:00:42]} 31. Bxe8 {[%emt 0:07:45]} bxa5 {[%emt 0:00:14]} 32. Bc6 {[%emt 0:00:04]} Rb6 {[%emt 0:05:15]} 33. Ke2 {[%emt 0:02:23]} a6 {[%emt 0:02:47]} 34. Kd2 {[%emt 0:02:23]} g6 {[%emt 0:02:07]} 35. Kd3 {[%emt 0:10:45]} axb5 {[%emt 0:02:17]} 36. axb5 {[%emt 0:00:05]} Ba6 {[%emt 0:00:09]} 37. Rd7+ {[%emt 0:00:07]} Ke8 {[%emt 0:01:02]} 38. bxa6 {[%emt 0:00:24]} Rxc6 {[%emt 0:00:04]} 39. a7 {[%emt 0:00:10]} Kxd7 {[%emt 0:00:09]} 40. a8=Q {[%emt 0:00:00]} Rc8 {[%emt 0:00:00]} 41. Qxa5 {[%emt 0:01:45]} Ke8 {[%emt 0:00:45]} 42. Qb4 {[%emt 0:00:14]} Rd8+ {[%emt 0:00:07]} 43. Ke3 {[%emt 0:00:23]} Rd1 {[%emt 0:00:31]} 44. Qa4+ {[%emt 0:00:54]} Rd7 {[%emt 0:00:07]} 45. Kf3 {[%emt 0:00:31]} Ke7 {[%emt 0:00:05]} 46. Kg4 {[%emt 0:00:28]} h6 {[%emt 0:00:07]} 47. h4 {[%emt 0:00:18]} Rd3 {[%emt 0:00:27]} 48. Qb4+ {[%emt 0:00:37]} Ke8 {[%emt 0:00:12]} 49. Qb5+ {[%emt 0:00:05]} Rd7 {[%emt 0:00:03]} 50. h5 {[%emt 0:00:06]} Ke7 {[%emt 0:00:09]} 51. Qc5+ {[%emt 0:00:42]} Ke8 {[%emt 0:00:09]} 52. hxg6 {[%emt 0:00:36]} fxg6 {[%emt 0:00:05]} 53. Qc8+ {[%emt 0:00:04]} 1-0

[Event "35th European Club Cup 2019"]
[Site "Ulcinj"]
[Date "2019.11.15"]
[Round "6.8"]
[White "Renet, Olivier"]
[Black "Tomic, Aleksandar"]
[Result "1-0"]
[ECO "A79"]
[WhiteElo "2475"]
[BlackElo "2364"]
[Annotator "ChessBase"]
[PlyCount "99"]
[EventDate "2019.11.10"]
[EventType "team-tourn"]
[EventCountry "MNE"]
[SourceTitle "playchess.com"]
[Source "ChessBase"]
[SourceQuality "1"]
[WhiteTeam "Riehen SG"]
[BlackTeam "Crnogorac"]
[TimeControl "40/5400+30:1800+30"]

1. d4 Nf6 2. c4 e6 3. Nc3 c5 4. d5 exd5 5. cxd5 d6 6. Nf3 g6 7. Nd2 Bg7 8. e4 O-O 9. Be2 Re8 10. O-O Na6 11. f3 Nc7 12. a4 b6 13. Kh1 Rb8 14. Nc4 Ba6 15. Bg5 Qd7 16. Qd2 Bxc4 17. Bxc4 a6 18. Be2 Rb7 19. Rab1 b5 20. b4 c4 21. a5 Qe7 22. Rbe1 Qf8 23. Bd1 Nd7 24. Bc2 Rbb8 25. f4 Bh6 26. Bxh6 Qxh6 27. Rf3 Qg7 28. Rfe3 Qh6 29. Qf2 Nf6 30. Bd1 Rbd8 31. g3 Qh3 32. Qg2 Qd7 33. g4 Qe7 34. g5 Nd7 35. Qg3 Rf8 36. Bg4 Nb8 37. h4 f6 38. Ne2 fxg5 39. hxg5 Qg7 40. Nc3 Qe7 41. Rd1 Qf7 42. Rf3 Qe7 43. Qh3 Kh8 44. Rd2 Rf7 45. Be6 Rg7 46. Rg2 Nd7 47. f5 Qe8 48. Rf4 Ne5 49. Rh4 Qf8 50. f6 1-0